bitfinex/quotes_SOLUSD_20260117
["timestamp","ask_amount","ask_price","bid_price","bid_amount"]
[1768609197770,2.05686555,144.57,144.55,0.1]
[1768609197971,2.05686555,144.57,144.55,1.68554983]
[1768609198587,17.2890733,144.6,144.56,1.58554983]
[1768609198588,8.52798334,144.6,144.56,1.58554983]
[1768609198787,8.97271518,144.6,144.56,1.58554983]
[1768609198987,1.61213371,144.62,144.57,1.58554983]
[1768609199187,2.05686555,144.61,144.57,1.58554983]
[1768609199389,2.05686555,144.61,144.58,1.58554983]
[1768609199715,8.97207078,144.61,144.58,1.58554983]
[1768609199876,6.91520523,144.61,144.58,1.58554983]
[1768609200064,8.97207078,144.61,144.58,1.58554983]
[1768609200793,6.91520523,144.61,144.58,8.50203991]
[1768609200995,8.52655438,144.63,144.59,1.58554983]
[1768609201582,6.91442067,144.63,144.59,1.58554983]
[1768609202067,6.91442067,144.63,144.6,1.58554983]
[1768609203392,2.05686555,144.64,144.61,1.58554983]
[1768609205784,2.05686555,144.64,144.58,19.34833048]
[1768609205785,1.61213371,144.61,144.55,62.5]
[1768609205972,2.05686555,144.6,144.55,15.24]
[1768609206294,3.66899926,144.6,144.55,15.24]
[1768609207468,18.89935739,144.62,144.56,8.97429217]
[1768609207665,20.95622294,144.62,144.56,8.97429217]
[1768609207870,20.95622294,144.62,144.57,1.32064912]
[1768609208489,6.91534084,144.61,144.57,8.23771149]
[1768609208687,6.91534084,144.61,144.58,1.32089488]
[1768609210395,6.9148961,144.62,144.59,1.32137796]
[1768609219476,8.52702981,144.62,144.59,1.32137796]
[1768609222804,8.97176165,144.62,144.57,6.91684709]
[1768609223003,3.5704589,144.61,144.58,1.32448735]
[1768609223403,3.57103659,144.61,144.58,1.32448735]
[1768609223704,2.05744324,144.61,144.58,1.32448735]
[1768609224086,10.48593269,144.62,144.58,1.32448735]
[1768609226508,2.05744324,144.61,144.58,1.32448735]
[1768609227007,2.05744324,144.61,144.58,6.91651794]
[1768609227205,2.05744324,144.61,144.59,1.32528721]
[1768609230906,8.49437703,144.61,144.58,8.24275438]
[1768609231610,6.91519032,144.61,144.59,1.32623644]
[1768609231986,10.55182027,144.61,144.58,1.3264198]
[1768609233318,8.49437703,144.61,144.58,1.3264198]
[1768609237202,1.57918671,144.61,144.58,8.24295128]
[1768609237398,8.97242834,144.62,144.59,1.32730546]
[1768609237399,8.49417181,144.62,144.59,1.32730546]
[1768609241722,10.55161505,144.62,144.59,1.32730546]
[1768609246834,10.55161505,144.62,144.59,8.24337097]
[1768609247040,10.55161505,144.62,144.59,1.32730546]
[1768609252723,10.55161505,144.62,144.59,8.2433367]
[1768609253935,8.49417181,144.62,144.59,8.2433367]
[1768609256042,6.9149851,144.62,144.6,1.33037816]
[1768609256938,8.51717971,144.62,144.59,8.24654518]
[1768609257941,8.51717971,144.62,144.59,1.33051394]
[1768609259042,10.57462295,144.62,144.59,1.33051394]
[1768609260140,8.51717971,144.62,144.59,8.24654559]
[1768609264851,1.60219461,144.62,144.59,8.24654559]
[1768609282779,1.60219461,144.62,144.59,23.38654559]
[1768609285084,1.52710838,144.65,144.6,1.33384064]
[1768609285285,1.52710838,144.67,144.64,1.33384064]
[1768609285579,1.52710838,144.67,144.64,1.27384064]
[1768609286567,1.52710838,144.67,144.64,8.1871957]
[1768609289677,1.52710838,144.68,144.65,1.27421812]
[1768609291690,1.52710838,144.68,144.65,8.1873461]
[1768609297170,1.52710838,144.68,144.64,8.18875748]
[1768609298982,1.52710838,144.68,144.64,10.24422402]
[1768609299175,1.52710838,144.68,144.64,8.18875748]
[1768609304196,1.52710838,144.68,144.65,1.27563117]
[1768609304388,1.52710838,144.68,144.65,3.33109771]
[1768609305195,1.52710838,144.68,144.65,1.27563117]
[1768609306393,1.52710838,144.68,144.66,6.91276095]
[1768609306880,1.52710838,144.68,144.65,8.18868489]
[1768609307686,1.52710838,144.68,144.65,6.91305372]
[1768609309202,1.58147055,144.67,144.64,8.18950248]
[1768609310790,1.58147055,144.66,144.64,6.91363249]
[1768609319309,1.57901285,144.65,144.63,6.91419484]
[1768609324511,1.57901285,144.65,144.62,8.19136942]
[1768609326022,1.57901285,144.65,144.62,6.91448813]
[1768609327315,1.57901285,144.65,144.62,8.19181694]
[1768609332624,1.57901285,144.64,144.61,6.91479785]
[1768609332914,1.57901285,144.64,144.61,8.19257636]
[1768609337930,8.49269911,144.65,144.62,1.27796286]
[1768609339527,1.57901285,144.64,144.61,8.19290835]
[1768609346035,8.49277461,144.64,144.61,8.19290835]
[1768609347110,8.49277461,144.64,144.61,1.27801661]
[1768609347310,1.49242138,144.63,144.59,23.33450161]
[1768609347918,1.49242138,144.63,144.6,8.19414945]
[1768609349217,8.96992336,144.64,144.6,8.19414945]
[1768609350033,8.96992336,144.64,144.61,1.51693994]
[1768609351335,10.48123999,144.64,144.61,1.51693994]
[1768609354246,8.42507839,144.64,144.61,1.51693994]
[1768609354539,10.48123999,144.64,144.61,1.51693994]
[1768609354738,8.42507839,144.64,144.61,1.51693994]
[1768609355043,8.42507839,144.64,144.61,8.43203377]
[1768609358140,1.51131663,144.63,144.6,8.43256926]
[1768609360053,6.91376176,144.64,144.6,8.43256926]
[1768609362037,8.42507839,144.64,144.6,8.43256926]
[1768609363749,8.42507839,144.64,144.6,6.91562932]
[1768609363937,8.42507839,144.64,144.61,1.51693994]
[1768609367261,8.42507839,144.64,144.61,8.4320461]
[1768609375967,1.51131663,144.64,144.61,8.4320461]
[1768609380867,8.4252073,144.64,144.61,8.4320461]
[1768609381067,8.4252073,144.64,144.59,32.42978939]
[1768609381068,1.57050061,144.63,144.59,16.63408429]
[1768609381368,3.62666221,144.62,144.59,16.63408429]
[1768609384568,1.57050061,144.62,144.59,16.63408429]
[1768609387067,1.57050061,144.62,144.59,23.55011583]
[1768609387675,8.48518463,144.62,144.59,23.55011583]
[1768609388380,8.48518463,144.62,144.59,1.49408429]
[1768609389671,1.57050061,144.61,144.58,6.91656946]
[1768609390066,1.57050061,144.61,144.58,8.41065375]
[1768609390256,3.62666221,144.61,144.58,8.41065375]
[1768609391181,17.28429203,144.64,144.55,10.63863135]
[1768609391182,1.57050061,144.59,144.55,10.63863135]
[1768609391359,1.57050061,144.61,144.56,1.49408429]
[1768609391672,1.57050061,144.61,144.57,1.49408429]
[1768609392274,8.48565383,144.61,144.57,8.41084046]
[1768609393177,8.48565383,144.61,144.58,1.49408429]
[1768609396663,8.48536434,144.62,144.59,1.49408429]
[1768609396868,6.91486373,144.62,144.59,1.49408429]
[1768609397081,8.48536434,144.62,144.59,1.49408429]
[1768609403271,8.54866231,144.63,144.59,1.49408429]
[1768609405494,10.60545122,144.63,144.59,1.49408429]
[1768609410092,1.63448622,144.62,144.59,1.49408429]
[1768609410388,1.63448622,144.62,144.58,22.05636997]
[1768609410389,2.05678891,144.62,144.58,16.73304316]
[1768609410691,1.63448622,144.61,144.58,16.73304316]
[1768609410872,2.05678891,144.61,144.57,1.59304316]
[1768609411188,2.05678891,144.6,144.57,1.59304316]
[1768609411575,2.05678891,144.6,144.56,1.59304316]
[1768609412495,6.91610761,144.59,144.56,1.59304316]
[1768609412682,8.97289652,144.59,144.55,1.69304316]
[1768609412873,3.69127513,144.58,144.55,1.69304316]
[1768609413073,1.60448622,144.58,144.55,1.69304316]
[1768609413789,8.52145485,144.58,144.55,1.69304316]
[1768609414775,8.49145485,144.58,144.55,1.69304316]
[1768609416182,10.54824376,144.58,144.55,1.69304316]
[1768609417078,8.49145485,144.58,144.55,1.69304316]
[1768609418499,8.46145485,144.58,144.55,1.69304316]
[1768609428010,1.63448622,144.57,144.55,0.1]
[1768609428313,1.6044862,144.57,144.55,0.1]
[1768609428818,1.6044862,144.57,144.55,7.01800673]
[1768609428986,1.6044862,144.57,144.55,0.1]
[1768609433519,1.5744862,144.57,144.55,0.1]
[1768609433904,8.97375754,144.58,144.55,1.69107483]
[1768609435425,10.50677576,144.58,144.55,1.69107483]
[1768609440722,1.53301822,144.57,144.55,1.69107483]
[1768609440923,1.50301822,144.57,144.55,1.69107483]
[1768609441123,3.55980713,144.57,144.55,1.69107483]
[1768609443234,8.42015231,144.57,144.55,1.69107483]
[1768609443406,10.47694122,144.57,144.55,1.69107483]
[1768609445628,1.53301822,144.56,144.55,0.1]
[1768609445810,1.50301821,144.56,144.55,0.1]
[1768609446326,8.973923,144.57,144.55,0.1]
[1768609447113,8.943923,144.57,144.55,0.1]
[1768609448830,10.47694122,144.57,144.55,0.1]
[1768609451738,8.4505611,144.56,144.55,0.1]
[1768609451936,8.4205611,144.56,144.55,0.1]
[1768609452734,6.91754288,144.56,144.55,0.1]
[1768609454541,6.88754288,144.56,144.55,0.1]
[1768609455635,1.53301822,144.55,144.53,0.1]
[1768609455837,3.55980713,144.55,144.53,0.1]
[1768609456535,2.05678891,144.55,144.53,0.1]
[1768609456736,2.05678891,144.55,144.53,1.69107483]
[1768609457250,8.94433179,144.56,144.53,1.69107483]
[1768609458528,9.26635684,144.56,144.53,1.69107483]
[1768609466552,8.94433179,144.56,144.53,1.69107483]
[1768609466850,6.85754288,144.56,144.53,1.69107483]
[1768609468635,6.82754286,144.56,144.53,1.69107483]
[1768609469342,8.88630801,144.56,144.53,1.69107483]
[1768609475854,8.85630799,144.56,144.53,1.69107483]
[1768609476173,6.79754284,144.56,144.53,1.69107483]
[1768609476348,6.76754284,144.56,144.54,1.59511838]
[1768609476758,9.29798457,144.58,144.54,1.59511838]
[1768609477239,2.05876515,144.57,144.54,1.59511838]
[1768609477757,9.29861226,144.57,144.54,1.59511838]
[1768609479965,2.38120736,144.56,144.53,1.69511838]
[1768609480153,2.05876515,144.55,144.53,1.69511838]
[1768609480557,2.05876515,144.55,144.53,0.1]
[1768609480947,2.38122231,144.55,144.53,0.1]
[1768609481963,9.29949768,144.55,144.53,0.1]
[1768609483970,6.91827537,144.55,144.53,1.69511838]
[1768609484170,8.97704052,144.55,144.53,1.69511838]
[1768609489367,8.97645849,144.56,144.53,1.69511838]
[1768609489955,2.38134942,144.54,144.52,0.1]
[1768609490155,2.05876515,144.53,144.52,0.1]
[1768609490360,2.02876513,144.53,144.52,0.1]
[1768609490882,1.99876513,144.53,144.52,0.1]
[1768609491190,1.96876509,144.53,144.52,0.1]
[1768609491379,8.97751601,144.54,144.52,1.66748287]
[1768609497179,8.97751601,144.54,144.51,0.3535974]
[1768609497366,10.5284,144.54,144.51,0.3535974]
[1768609497879,2.05876515,144.53,144.51,0.3535974]
[1768609498078,2.02876515,144.53,144.51,0.3535974]
[1768609499273,2.02876515,144.53,144.51,1.92108027]
[1768609501384,2.05876515,144.52,144.5,1.56748287]
[1768609502292,8.97786579,144.53,144.5,1.56748287]
[1768609502588,17.2970826,144.54,144.51,1.56748287]
[1768609502589,6.91869211,144.54,144.51,1.56748287]
[1768609503486,1.55088399,144.57,144.52,1.56748287]
[1768609503691,2.05876515,144.56,144.52,1.56748287]
[1768609503981,3.60964914,144.56,144.52,1.56748287]
[1768609504191,2.05876515,144.55,144.52,1.56748287]
[1768609504990,10.52761332,144.56,144.53,1.56748287]
[1768609508663,27.81843083,144.58,144.54,1.56748287]
[1768609509692,103.8,144.59,144.55,1.56748287]
[1768609509693,6.91630243,144.59,144.55,1.56748287]
[1768609509871,6.91630243,144.59,144.56,1.56748287]
[1768609510585,3.60964914,144.61,144.57,1.56748287]
[1768609511602,10.52500638,144.61,144.57,1.56748287]
[1768609514185,10.52500638,144.61,144.58,1.56748287]
[1768609523211,8.97412239,144.61,144.58,1.56748287]
[1768609523709,10.56016788,144.61,144.58,1.56748287]
[1768609524412,8.50140273,144.61,144.58,1.56748287]
[1768609530103,10.55869214,144.61,144.58,1.56748287]
[1768609532615,8.50140273,144.61,144.58,1.56748287]
[1768609532805,10.55869214,144.61,144.58,1.56748287]
[1768609543817,1.56937033,144.6,144.57,1.55005226]
[1768609544204,10.54201698,144.61,144.57,1.55005226]
[1768609548933,8.97295627,144.6,144.57,1.55005226]
[1768609549111,6.91566686,144.6,144.57,1.55005226]
[1768609555135,1.61245364,144.58,144.55,8.48807767]
[1768609555342,3.66974305,144.59,144.56,1.57005623]
[1768609557234,2.05728941,144.59,144.56,1.57005623]
[1768609558018,10.58540991,144.6,144.56,1.57005623]
[1768609561137,8.97295627,144.6,144.56,1.57005623]
[1768609561341,1.61245364,144.59,144.56,1.57005623]
[1768609561834,8.5281205,144.6,144.57,1.57005623]
[1768609562042,10.58540991,144.6,144.57,1.57005623]
[1768609562514,49.7088365,144.64,144.57,1.57005623]
[1768609562515,8.52778213,144.61,144.57,1.57005623]
[1768609564516,8.52778213,144.61,144.58,1.57005623]
[1768609565031,10.58507154,144.61,144.58,1.57005623]
[1768609578453,8.52778213,144.61,144.58,1.57005623]
[1768609578637,8.9726179,144.61,144.58,1.57005623]
[1768609578953,6.91532849,144.61,144.58,1.57005623]
[1768609579446,8.52778213,144.61,144.58,1.57005623]
[1768609581061,10.58507154,144.61,144.58,1.57005623]
[1768609581360,8.9726179,144.61,144.58,1.57005623]
[1768609581769,2.05728941,144.64,144.59,1.55879254]
[1768609581957,3.60449653,144.64,144.59,1.55879254]
[1768609582135,3.60449653,144.64,144.6,1.55879254]
[1768609582332,1.54720712,144.65,144.6,1.49879256]
[1768609582554,3.60449653,144.65,144.6,1.49879256]
[1768609583141,2.05728941,144.65,144.6,1.49879256]
[1768609583345,8.97081476,144.65,144.6,8.41403226]
[1768609583538,8.97081476,144.65,144.6,6.9152397]
[1768609584453,8.97081476,144.65,144.62,1.55879254]
[1768609585661,6.91352535,144.65,144.62,1.55879254]
[1768609585849,6.91286912,144.66,144.63,1.55879254]
[1768609586153,6.91286912,144.66,144.63,1.49879258]
[1768609587555,8.45921109,144.68,144.63,8.97126886]
[1768609587948,8.45921109,144.68,144.64,1.55879254]
[1768609589162,8.45921109,144.68,144.64,6.91363775]
[1768609589353,8.45921109,144.68,144.65,1.55879254]
[1768609589542,10.71402896,144.69,144.65,1.49879258]
[1768609592265,0.2,144.69,144.66,1.64678574]
[1768609592750,0.2,144.69,144.67,1.64678574]
[1768609593665,2.25532181,144.69,144.67,1.64678574]
[1768609595971,0.2,144.69,144.67,1.64678574]
[1768609596280,2.25532181,144.69,144.67,1.64678574]
[1768609598568,6.91104818,144.7,144.68,1.64678574]
[1768609598745,8.96636999,144.7,144.64,24.19800884]
[1768609599174,2.05532181,144.69,144.64,24.19800884]
[1768609600654,2.05532181,144.69,144.65,6.91297297]
[1768609600860,2.05532181,144.69,144.66,1.64678574]
[1768609601060,2.05532181,144.68,144.66,1.64678574]
[1768609601578,2.05532181,144.69,144.66,1.64678574]
[1768609603571,3.66886908,144.69,144.66,1.64678574]
[1768609604577,1.61354727,144.69,144.66,1.64678574]
[1768609604779,8.96636999,144.7,144.67,1.64678574]
[1768609604960,10.57991726,144.7,144.67,1.58678575]
[1768609605478,2.05532181,144.68,144.65,6.91309754]
[1768609606380,2.05532181,144.68,144.63,24.19968194]
[1768609606981,2.05532181,144.68,144.64,1.64678574]
[1768609607272,8.52492422,144.69,144.64,1.64678574]
[1768609607478,2.05532181,144.68,144.64,1.64678574]
[1768609607779,2.05532181,144.68,144.63,24.19968194]
[1768609607780,2.05532181,144.68,144.66,1.64678574]
[1768609611377,8.52492422,144.69,144.66,1.64678574]
[1768609611581,2.05532181,144.68,144.66,8.5595398]
[1768609613184,10.58024603,144.69,144.66,8.5595398]
[1768609614858,8.52492422,144.69,144.66,8.5595398]
[1768609615058,10.58024603,144.69,144.66,8.5595398]
[1768609616989,3.65946529,144.7,144.67,1.5768763]
[1768609617883,3.65946529,144.68,144.65,8.48992743]
[1768609618086,1.60414348,144.68,144.66,6.91261276]
[1768609618672,1.60414348,144.69,144.66,8.48948906]
[1768609618876,3.65946529,144.7,144.67,1.5768763]
[1768609619064,1.60414348,144.7,144.67,1.51687634]
[1768609619662,3.65946529,144.7,144.67,1.51687634]
[1768609619869,1.80414348,144.71,144.67,1.51687634]
[1768609620086,3.85946529,144.71,144.67,1.51687634]
[1768609620296,3.85946529,144.71,144.67,6.91192522]
[1768609620472,2.25532181,144.71,144.67,6.91192522]
[1768609620676,1.60414348,144.7,144.67,6.91192522]
[1768609621201,1.60414348,144.7,144.67,8.48880152]
[1768609629290,3.85946529,144.71,144.67,1.5768763]
[1768609630992,0.2,144.71,144.68,1.5768763]
[1768609631378,0.2,144.71,144.7,1.5768763]
[1768609632281,0.2,144.71,144.69,8.48820396]
[1768609634295,0.2,144.72,144.69,6.91132766]
[1768609634509,1.80414348,144.72,144.69,8.48820396]
[1768609635878,3.85946529,144.72,144.69,8.48820396]
[1768609636090,3.85946529,144.72,144.67,32.41998005]
[1768609636091,1.60414348,144.69,144.67,6.91214135]
[1768609636286,3.65946529,144.69,144.67,6.91214135]
[1768609636906,1.60414348,144.69,144.67,6.91214135]
[1768609637091,3.65946529,144.69,144.67,6.91214135]
[1768609640106,1.60414348,144.68,144.63,16.7168763]
[1768609640416,2.05532181,144.65,144.63,8.49077578]
[1768609640709,1.60414348,144.67,144.63,8.49077578]
[1768609640710,2.05532181,144.66,144.63,8.49077578]
[1768609641006,1.60414348,144.67,144.63,8.49077578]
[1768609641209,2.05532181,144.66,144.64,1.5768763]
[1768609649118,8.51645993,144.67,144.64,1.5768763]
[1768609649319,2.05590982,144.66,144.64,1.5768763]
[1768609652328,8.51645993,144.67,144.64,1.5768763]
[1768609652529,2.05590982,144.66,144.64,1.5768763]
[1768609658921,10.57236975,144.67,144.64,1.5768763]
[1768609665945,3.69189293,144.66,144.62,8.41455871]
[1768609666243,3.69189293,144.66,144.63,1.49988578]
[1768609666830,3.69189293,144.66,144.63,8.41405003]
[1768609667024,1.63598311,144.66,144.63,8.41405003]
[1768609667345,1.63598311,144.64,144.61,63.89988578]
[1768609667632,1.60598311,144.64,144.61,63.89988578]
[1768609667834,1.55998863,144.64,144.61,63.89988578]
[1768609668040,1.55998863,144.64,144.61,70.81476672]
[1768609670045,10.52983641,144.64,144.61,1.49988578]
[1768609670340,10.49983641,144.64,144.61,1.49988578]
[1768609670540,10.49983641,144.64,144.61,8.41496839]
[1768609671424,8.96984778,144.64,144.6,8.41531365]
[1768609672018,8.96984778,144.64,144.61,1.49385767]
[1768609672433,10.59931241,144.64,144.61,1.49385767]
[1768609680229,1.62946463,144.64,144.61,8.4090086]
[1768609680443,10.59877847,144.65,144.62,1.49385767]
[1768609681131,1.62946463,144.64,144.62,1.49385767]
[1768609681345,1.62946463,144.64,144.62,8.40847475]
[1768609681628,1.62946463,144.67,144.63,2.05590982]
[1768609681830,1.62946463,144.67,144.64,1.49385767]
[1768609682230,0.00259108,144.67,144.64,1.49385767]
[1768609685337,8.97078402,144.67,144.64,1.49385767]
[1768609686558,1.62946463,144.66,144.64,1.49385767]
[1768609686733,1.59946462,144.66,144.64,1.49385767]
[1768609687259,8.96819294,144.67,144.64,1.49385767]
[1768609688762,10.59765757,144.67,144.64,1.49385767]
[1768609695261,1.62946463,144.66,144.63,8.40784341]
[1768609695553,1.025e-05,144.66,144.63,8.40784341]
[1768609696760,2.05590982,144.65,144.63,1.49385767]
[1768609696961,1.9959098,144.65,144.63,1.49385767]
[1768609697137,8.9092696,144.65,144.62,16.63385767]
[1768609697459,10.20590147,144.65,144.62,1.49385767]
[1768609699549,3.35252258,144.64,144.62,1.49385767]
[1768609699751,3.35252258,144.64,144.61,8.40880444]
[1768609700050,1.29661276,144.64,144.61,8.40880444]
[1768609700273,1.29661276,144.64,144.61,1.49385767]
[1768609700571,3.35252258,144.64,144.61,1.49385767]
[1768609702970,3.32252256,144.64,144.61,1.49385767]
[1768609703575,3.29252256,144.64,144.61,1.49385767]
[1768609705874,3.29252256,144.64,144.61,8.40894349]
[1768609709279,2.05590982,144.64,144.62,1.49455827]
[1768609709983,3.29472502,144.64,144.61,1.63784855]
[1768609711285,3.29536374,144.64,144.61,1.63784855]
[1768609711480,3.29536374,144.64,144.61,8.55275459]
[1768609714085,1.23949389,144.63,144.61,6.91490604]
[1768609714384,3.29604243,144.64,144.61,8.55275459]
[1768609715485,2.05654854,144.63,144.61,8.55275459]
[1768609716186,3.29604243,144.64,144.61,8.55275459]
[1768609719777,1.24029931,144.63,144.61,6.91490604]
[1768609719977,1.21029931,144.63,144.61,6.91490604]
[1768609720990,2.05654854,144.64,144.61,8.55275459]
[1768609721993,3.26730924,144.64,144.61,8.55275459]
[1768609723491,1.21091098,144.61,144.58,8.55435521]
[1768609723794,3.26745952,144.61,144.58,1.63784855]
[1768609723993,3.26745952,144.62,144.59,8.55368664]
[1768609732074,3.26889225,144.61,144.58,1.62105275]
[1768609734500,3.26889225,144.61,144.58,8.53731728]
[1768609737601,2.05654854,144.61,144.59,1.62105275]
[1768609739189,2.05654854,144.61,144.59,8.53714037]
[1768609740298,1.21337833,144.65,144.6,1.62105275]
[1768609740605,2.05654854,144.63,144.6,1.62105275]
[1768609740983,2.05654854,144.63,144.6,8.53667063]
[1768609742297,3.27017093,144.63,144.6,8.53667063]
[1768609745602,10.18441193,144.63,144.6,1.62105275]
[1768609745789,1.21397807,144.62,144.59,8.53709327]
[1768609746305,3.27052661,144.62,144.59,8.53709327]
[1768609748507,2.05654854,144.6,144.56,1.62105275]
[1768609748810,2.05654854,144.59,144.56,1.62105275]
[1768609749105,2.02654854,144.59,144.56,1.62105275]
[1768609750289,2.05654854,144.6,144.56,1.62105275]
[1768609752200,8.94255583,144.6,144.56,1.62105275]
[1768609754219,2.05654854,144.59,144.56,1.62105275]
[1768609754998,2.05654854,144.58,144.56,1.62105275]
[1768609755214,2.05654854,144.58,144.54,6.91841824]
[1768609755215,8.97358273,144.58,144.55,1.62105275]
[1768609755394,8.97358273,144.58,144.54,1.62105275]
[1768609757115,2.05654854,144.57,144.54,1.62105275]
[1768609760222,8.97358273,144.58,144.55,1.62105275]
[1768609764127,2.05654854,144.57,144.55,1.62105275]
[1768609765129,2.05654854,144.58,144.55,1.62105275]
[1768609766436,8.9735971,144.58,144.55,1.62105275]
[1768609768227,8.9435971,144.58,144.55,1.62105275]
[1768609769127,8.9435971,144.58,144.52,0.1]
[1768609769128,2.05654854,144.56,144.52,0.1]
[1768609769436,2.05654854,144.54,144.52,0.1]
[1768609770214,6.91897875,144.53,144.52,0.1]
[1768609770519,8.91552729,144.53,144.51,1.7415476]
[1768609770830,6.85897875,144.53,144.51,1.7415476]
[1768609771431,2.05654854,144.54,144.51,1.7415476]
[1768609771432,2.05957623,144.54,144.51,1.7415476]
[1768609771634,2.05957623,144.53,144.51,1.7415476]
[1768609773932,8.97856174,144.53,144.51,1.7415476]
[1768609780851,2.05957623,144.53,144.51,1.7415476]
[1768609782448,8.97887321,144.53,144.51,1.7415476]
[1768609783048,6.91929698,144.53,144.51,1.7415476]
[1768609783222,8.97887321,144.53,144.51,1.7415476]
[1768609788055,8.94887321,144.53,144.51,1.7415476]
[1768609789250,8.91887321,144.53,144.51,1.7415476]
[1768609795551,10.5051497,144.53,144.49,0.1]
[1768609797538,10.4751497,144.53,144.49,1.61907881]
[1768609800047,8.97934491,144.52,144.49,1.61907881]
[1768609800364,3.64585272,144.5,144.47,16.4480522]
[1768609800556,2.02957621,144.49,144.47,17.96713101]
[1768609800760,2.05957623,144.5,144.47,17.96713101]
[1768609801468,2.05957623,144.49,144.47,16.4480522]
[1768609802467,3.64585272,144.49,144.47,16.4480522]
[1768609802864,10.566964,144.49,144.47,16.4480522]
[1768609803666,10.566964,144.49,144.47,17.96713101]
[1768609803667,8.98068751,144.49,144.47,17.96713101]
[1768609804348,6.92111128,144.49,144.47,17.96713101]
[1768609804962,8.98068751,144.49,144.47,17.96713101]
[1768609809072,8.95068751,144.49,144.47,17.96713101]
[1768609809974,10.536964,144.49,144.47,17.96713101]
[1768609811552,10.50696398,144.49,144.47,17.96713101]
[1768609811954,10.47696398,144.49,144.47,17.96713101]
[1768609812273,2.05957623,144.48,144.47,14.83147258]
[1768609812460,2.02957623,144.48,144.47,14.83147258]
[1768609816779,2.02957623,144.48,144.46,1.61907881]
[1768609820493,2.05957623,144.47,144.46,1.61907881]
[1768609820674,2.05957623,144.48,144.46,1.61907881]
[1768609823602,8.98095588,144.48,144.46,0.1]
[1768609823767,2.05957623,144.47,144.46,0.1]
[1768609824189,2.05957623,144.47,144.45,1.59434651]
[1768609831388,2.0614852,144.47,144.45,1.59434651]
[1768609833003,24.22145328,144.5,144.45,1.59434651]
[1768609833185,2.0614852,144.47,144.45,1.59434651]
[1768609835090,2.0314852,144.47,144.45,1.59434651]
[1768609836103,8.95337612,144.47,144.45,0.1]
[1768609836301,2.0614852,144.46,144.45,0.1]
[1768609836486,6.92089417,144.49,144.45,0.1]
[1768609836687,2.0614852,144.46,144.45,0.1]
[1768609837005,1.30974883,144.46,144.45,1.70957663]
[1768609837588,2.0614852,144.47,144.45,8.63238214]
[1768609837783,2.0614852,144.47,144.46,1.60957663]
[1768609838183,39.48238725,144.52,144.47,1.60957663]
[1768609838499,2.0614852,144.49,144.47,1.60957663]
[1768609838803,2.0614852,144.48,144.46,6.92223529]
[1768609838990,2.0614852,144.48,144.45,7.02259339]
[1768609839507,3.638814,144.48,144.45,7.02259339]
[1768609840397,1.5773288,144.47,144.45,7.02259339]
[1768609840595,3.638814,144.48,144.45,7.02259339]
[1768609840907,2.0614852,144.46,144.45,0.1]
[1768609841304,2.0614852,144.46,144.44,1.70957663]
[1768609842213,2.03148519,144.46,144.44,1.70957663]
[1768609843592,2.03148519,144.46,144.44,8.63286023]
[1768609845717,2.0614852,144.46,144.44,8.63286023]
[1768609847419,2.0614852,144.46,144.44,8.63284314]
[1768609849398,1.5773288,144.47,144.44,8.63284314]
[1768609849598,2.0614852,144.46,144.44,8.63284314]
[1768609850600,1.5773288,144.47,144.44,8.63284314]
[1768609850804,2.0614852,144.46,144.45,1.60957663]
[1768609851401,3.638814,144.47,144.45,1.60957663]
[1768609851604,1.5773288,144.47,144.45,1.60957663]
[1768609851801,3.638814,144.47,144.45,1.60957663]
[1768609852817,8.51367689,144.5,144.46,1.51786202]
[1768609853029,2.0614852,144.48,144.46,1.51786202]
[1768609853196,2.0614852,144.48,144.45,6.92251107]
[1768609853197,2.0614852,144.48,144.45,8.44037309]
[1768609854517,3.65474687,144.48,144.45,8.44037309]
[1768609854906,3.65474687,144.47,144.45,6.92251107]
[1768609855111,3.65474687,144.47,144.44,8.54101405]
[1768609855302,2.0614852,144.46,144.44,8.54101405]
[1768609855495,3.65474687,144.46,144.44,7.02315203]
[1768609855699,3.65474687,144.46,144.44,8.54101405]
[1768609855700,2.0614852,144.46,144.44,8.54101405]
[1768609856117,1.59326167,144.45,144.44,7.02315203]
[1768609856321,1.56326165,144.45,144.44,7.02315203]
[1768609856519,2.0614852,144.46,144.44,7.02315203]
[1768609857027,2.0314852,144.46,144.44,7.02315203]
[1768609858333,3.62474687,144.46,144.44,7.02315203]
[1768609860130,1.59326167,144.45,144.44,0.1]
[1768609860315,1.56326167,144.45,144.44,0.1]
[1768609860522,3.62474687,144.45,144.43,7.02359337]
[1768609861336,1.56326167,144.45,144.43,7.02359337]
[1768609863623,3.62474687,144.45,144.43,7.02359337]
[1768609864228,3.59474687,144.45,144.43,7.02359337]
[1768609865937,3.59474687,144.45,144.43,7.02367759]
[1768609866641,1.53326167,144.45,144.43,7.02367759]
[1768609869523,3.59474687,144.45,144.43,7.02367759]
[1768609872249,1.50326167,144.45,144.43,7.02367759]
[1768609874858,1.50326167,144.45,144.43,0.1]
[1768609877551,3.56474687,144.45,144.43,0.1]
[1768609879660,3.53474687,144.45,144.43,0.1]
[1768609880257,1.47326167,144.45,144.43,8.54146411]